bitfinex-derivatives/quotes_SOLF0:USTF0_20241211
["timestamp","ask_amount","ask_price","bid_price","bid_amount"]
[1733909566135,2.14,221.48,221.41,5.4348813]
[1733909567238,2.14,221.48,221.43,2.2577]
[1733909569633,2.14,221.48,221.41,5.4348813]
[1733909570438,2.14,221.48,221.44,2.2575]
[1733909570738,2.14,221.48,221.41,5.4348813]
[1733909571135,2.2574,221.46,221.41,5.4348813]
[1733909571533,2.14,221.48,221.41,5.4348813]
[1733909572441,2.2574,221.46,221.41,5.4348813]
[1733909572839,2.14,221.48,221.41,5.4348813]
[1733909573632,2.2573,221.47,221.42,2.2578]
[1733909573832,2.14,221.48,221.41,5.4348813]
[1733909574446,2.14,221.48,221.45,2.2575]
[1733909574942,2.14,221.48,221.41,16.20877498]
[1733909575143,2.14,221.49,221.46,2.2573]
[1733909575439,460.35603687,221.76,221.41,16.20877498]
[1733909575643,460.35603687,221.76,221.42,4.193]
[1733909575644,10.77389368,221.57,221.42,4.193]
[1733909576140,2.2567,221.53,221.47,2.2572]
[1733909576341,2.14,221.52,221.42,4.193]
[1733909576733,2.14,221.52,221.45,2.2575]
[1733909576936,2.14,221.52,221.42,4.193]
[1733909577340,2.2569,221.51,221.45,2.2574]
[1733909578238,2.2569,221.51,221.47,2.2573]
[1733909578547,2.14,221.5,221.47,2.2573]
[1733909578739,2.14,221.51,221.42,4.193]
[1733909579235,2.14,221.51,221.49,2.257]
[1733909579441,0.18114,221.6,221.47,10.77389368]
[1733909579835,2.14,221.59,221.54,2.2565]
[1733909580046,2.2562,221.58,221.5,10.77389368]
[1733909580242,2.14,221.57,221.5,10.77389368]
[1733909580939,4.3963,221.57,221.5,10.77389368]
[1733909581135,2.14,221.57,221.5,10.77389368]
[1733909581940,2.2564,221.55,221.47,10.77389368]
[1733909582439,2.2566,221.54,221.48,2.2571]
[1733909583242,2.2567,221.53,221.48,2.2571]
[1733909583443,2.12,221.52,221.47,10.77389368]
[1733909583647,2.12,221.52,221.44,10.77389368]
[1733909583947,2.2571,221.49,221.44,10.77389368]
[1733909584147,2.2571,221.49,221.43,2.2577]
[1733909585347,2.2572,221.48,221.42,4.193]
[1733909585549,2.12,221.52,221.42,4.193]
[1733909585851,2.2572,221.48,221.42,4.193]
[1733909586050,2.12,221.52,221.42,4.193]
[1733909586647,2.12,221.52,221.42,2.7913]
[1733909586842,2.2575,221.45,221.42,1.4026]
[1733909587140,2.2575,221.45,221.41,5.4348813]
[1733909587742,2.2576,221.44,221.41,5.4348813]
[1733909590458,2.12,221.46,221.41,5.4348813]
[1733909590459,4.3775,221.46,221.41,5.4348813]
[1733909591351,2.12,221.46,221.42,2.2578]
[1733909591855,2.12,221.46,221.41,5.4348813]
[1733909592955,4.3774,221.46,221.41,5.4348813]
[1733909593656,2.12,221.46,221.41,5.4348813]
[1733909593854,2.12,221.46,221.36,2.7845]
[1733909594557,2.2578,221.43,221.37,2.2582]
[1733909594754,2.2578,221.43,221.36,2.7845]
[1733909595549,2.2578,221.43,221.39,5.37688466]
[1733909596456,2.12,221.46,221.39,5.37688466]
[1733909596667,2.14,221.51,221.39,5.37688466]
[1733909596961,2.14,221.5,221.41,10.77389368]
[1733909597359,2.14,221.5,221.42,1.422]
[1733909599459,2.14,221.5,221.46,2.2573]
[1733909600861,2.14,221.53,221.49,2.257]
[1733909601059,2.14,221.54,221.49,2.257]
[1733909601758,10.77389368,221.57,221.49,2.257]
[1733909601960,2.14,221.56,221.49,2.257]
[1733909602164,12.15809368,221.6,221.51,2.2568]
[1733909602357,2.14,221.58,221.51,2.2568]
[1733909602761,2.2563,221.57,221.51,2.2568]
[1733909603258,2.2564,221.56,221.51,2.2568]
[1733909603963,2.2564,221.56,221.52,2.2567]
[1733909606164,2.2566,221.54,221.48,2.2571]
[1733909606362,2.2566,221.54,221.45,2.7096]
[1733909606764,2.2566,221.54,221.5,2.2569]
[1733909608363,2.2566,221.54,221.45,2.7096]
[1733909608565,4.3967,221.53,221.45,2.7096]
[1733909608871,2.14,221.53,221.45,4.967]
[1733909609172,2.2569,221.51,221.45,2.7096]
[1733909609470,2.14,221.53,221.45,2.7096]
[1733909610168,2.14,221.53,221.48,5.47104528]
[1733909610462,2.2568,221.52,221.48,5.47104528]
[1733909610662,2.14,221.53,221.48,5.47104528]
[1733909611259,2.2569,221.51,221.48,5.47104528]
[1733909611868,2.14,221.53,221.48,5.47104528]
[1733909612069,2.257,221.5,221.48,5.47104528]
[1733909614568,2.2573,221.47,221.43,2.2576]
[1733909615070,2.2573,221.47,221.46,5.41493233]
[1733909615969,2.2575,221.45,221.37,10.77389368]
[1733909616764,12.91389368,221.48,221.35,2.14]
[1733909616964,12.91389368,221.48,221.34,10.77389368]
[1733909617166,10.77389368,221.45,221.4,5.5535847]
[1733909617570,2.2579,221.41,221.4,5.5535847]
[1733909617964,2.14,221.42,221.33,6.4179]
[1733909618166,12.91389368,221.42,221.36,5.35086748]
[1733909619174,2.2583,221.38,221.36,5.35086748]
[1733909620677,2.258,221.41,221.36,5.35086748]
[1733909620874,2.14,221.42,221.36,5.35086748]
[1733909621374,2.14,221.42,221.37,2.2582]
[1733909622674,4.3978,221.42,221.37,2.2582]
[1733909623975,2.2579,221.41,221.36,5.35086748]
[1733909624173,2.2579,221.41,221.36,7.60926748]
[1733909628477,2.14,221.42,221.38,2.2581]
[1733909628680,10.77389368,221.45,221.36,5.35086748]
[1733909628877,2.12,221.43,221.36,5.35086748]
[1733909629175,2.12,221.43,221.37,6.89458156]
[1733909629580,2.12,221.43,221.39,2.258]
[1733909631074,2.12,221.43,221.37,6.89458156]
[1733909631274,6.89458156,221.46,221.36,5.35086748]
[1733909631275,72.95643303,221.63,221.41,6.89458156]
[1733909631470,6.89458156,221.49,221.41,6.89458156]
[1733909631671,2.12,221.49,221.45,2.2574]
[1733909631873,2.12,221.49,221.45,6.89458156]
[1733909632282,72.95643303,221.63,221.47,6.89458156]
[1733909632478,6.89458156,221.55,221.47,6.89458156]
[1733909632680,2.12,221.54,221.47,6.89458156]
[1733909633172,2.12,221.54,221.45,10.76179677]
[1733909633375,2.12,221.54,221.46,2.8644]
[1733909634277,2.12,221.54,221.47,1.4316]
[1733909635781,2.12,221.54,221.49,2.257]
[1733909636181,2.12,221.56,221.47,1.4316]
[1733909636777,2.12,221.56,221.5,2.2568]
[1733909637581,2.12,221.56,221.51,2.2568]
[1733909641081,10.95454677,221.62,221.48,10.76179677]
[1733909641281,2.12,221.61,221.48,10.76179677]
[1733909641794,2.256,221.6,221.48,10.76179677]
[1733909642683,2.256,221.6,221.55,2.2564]
[1733909643287,4.3761,221.59,221.55,2.2564]
[1733909643487,2.12,221.59,221.55,2.2564]
[1733909644086,2.12,221.59,221.56,2.2563]
[1733909645082,2.12,221.59,221.53,5.38637904]
[1733909645083,2.12,221.59,221.55,2.2564]
[1733909645290,12.88179677,221.59,221.53,5.38637904]
[1733909645787,2.2563,221.57,221.53,5.38637904]
[1733909646394,2.12,221.59,221.53,5.38637904]
[1733909646585,2.12,221.61,221.53,5.38637904]
[1733909647192,10.95454677,221.62,221.53,5.38637904]
[1733909647488,2.12,221.61,221.57,2.2562]
[1733909647697,10.95454677,221.62,221.57,2.2562]
[1733909647993,2.12,221.61,221.57,2.2562]
[1733909648496,2.12,221.61,221.53,5.38637904]
[1733909648989,4.3759,221.61,221.56,2.2563]
[1733909653004,4.3759,221.61,221.55,2.2563]
[1733909653506,4.3759,221.61,221.56,2.2563]
[1733909653903,4.3759,221.61,221.54,1.4261]
[1733909654106,4.3759,221.61,221.55,2.2564]
[1733909655204,11.2602672,221.61,221.55,2.2564]
[1733909656309,11.2602672,221.61,221.54,1.4261]
[1733909656509,11.2602672,221.61,221.56,2.2563]
[1733909657810,9.0043672,221.61,221.55,6.8843672]
[1733909658704,2.12,221.61,221.58,2.2561]
[1733909659207,6.8843672,221.64,221.59,2.256]
[1733909659511,9.0043672,221.64,221.59,2.256]
[1733909659709,72.92272401,221.71,221.57,6.8843672]
[1733909659906,72.92272401,221.71,221.61,6.8843672]
[1733909660107,6.8843672,221.68,221.61,6.8843672]
[1733909660607,6.8843672,221.68,221.63,2.2555]
[1733909660808,6.8843672,221.68,221.61,6.8843672]
[1733909661312,9.0043672,221.71,221.65,6.8843672]
[1733909661508,2.12,221.71,221.65,6.8843672]
[1733909661709,9.0043672,221.71,221.65,6.8843672]
[1733909662310,9.0043672,221.71,221.67,2.2552]
[1733909662311,11.2592672,221.71,221.67,2.2552]
[1733909663003,4.3747,221.72,221.67,2.2552]
[1733909663202,6.8843672,221.71,221.67,2.2552]
[1733909665610,6.8843672,221.69,221.63,2.2555]
[1733909665807,2.12,221.72,221.6,6.8843672]
[1733909665808,6.8843672,221.67,221.6,6.8843672]
[1733909666006,6.8843672,221.65,221.58,6.8843672]
[1733909666208,11.2597672,221.65,221.59,2.256]
[1733909666412,6.8843672,221.61,221.57,50.58456004]
[1733909667011,6.8843672,221.59,221.54,5.1156]
[1733909667208,6.8843672,221.59,221.54,2.8591]
[1733909667412,4.376,221.6,221.55,2.2564]
[1733909667413,2.12,221.6,221.55,2.2564]
[1733909673316,2.12,221.6,221.57,2.2562]
[1733909673717,2.12,221.6,221.56,6.8843672]
[1733909675315,2.12,221.6,221.55,2.2563]
[1733909675513,2.256,221.59,221.53,5.38637904]
[1733909676614,2.256,221.59,221.53,7.64297904]
[1733909677223,2.256,221.59,221.53,5.38637904]
[1733909678619,2.256,221.59,221.54,2.2565]
[1733909679822,2.256,221.59,221.53,5.38637904]
[1733909680018,2.256,221.59,221.53,7.64297904]
[1733909680627,9.0043672,221.6,221.53,7.64297904]
[1733909680821,2.2562,221.58,221.53,7.64297904]
[1733909681028,9.1405672,221.58,221.53,7.64297904]
[1733909683125,2.12,221.6,221.54,2.2565]
[1733909683330,2.12,221.6,221.54,6.8843672]
[1733909684731,2.12,221.6,221.57,2.2562]
[1733909685129,9.1404672,221.59,221.55,2.2564]
[1733909687629,2.12,221.6,221.53,12.27074624]
[1733909687827,2.12,221.6,221.53,5.38637904]
[1733909687828,9.0043672,221.6,221.53,5.38637904]
[1733909688029,2.2563,221.57,221.53,7.64297904]
[1733909688230,6.8843672,221.56,221.44,2.12]
[1733909688432,2.12,221.55,221.5,6.8843672]
[1733909688637,2.12,221.55,221.53,2.2565]
[1733909688938,2.12,221.55,221.44,2.12]
[1733909688939,2.12,221.55,221.52,6.8843672]
[1733909689630,2.12,221.55,221.54,2.2565]
[1733909690531,2.2566,221.54,221.43,2.8153]
[1733909690735,2.12,221.55,221.44,6.8843672]
[1733909690736,6.8843672,221.53,221.44,6.8843672]
[1733909690934,6.8843672,221.53,221.46,6.8843672]
[1733909691231,9.0043672,221.55,221.49,5.49748621]
[1733909691637,9.0043672,221.55,221.51,2.2568]
[1733909692239,5.75,221.71,221.49,12.38185341]
[1733909692437,6.8843672,221.59,221.51,6.8843672]
[1733909692638,2.12,221.58,221.51,6.8843672]
[1733909693633,2.12,221.58,221.53,2.2566]
[1733909694937,4.3762,221.58,221.53,2.2566]
[1733909695641,11.2605672,221.58,221.53,2.2566]
[1733909697140,2.12,221.58,221.53,6.8843672]
[1733909697441,2.2559,221.61,221.55,6.8843672]
[1733909697442,2.12,221.6,221.55,6.8843672]
[1733909698638,2.12,221.6,221.56,2.2563]
[1733909699442,2.12,221.6,221.53,6.8843672]
[1733909699640,2.12,221.6,221.57,2.2562]
[1733909700442,4.3759,221.61,221.57,2.2562]
[1733909701040,2.2559,221.61,221.57,2.2562]
[1733909701247,2.12,221.6,221.57,2.2562]
[1733909702741,6.8843672,221.58,221.51,1.4182]
[1733909703439,9.1405672,221.58,221.53,2.2566]
[1733909703646,6.8843672,221.56,221.51,1.4182]
[1733909703946,2.12,221.55,221.51,1.4182]
[1733909704146,2.12,221.55,221.5,1.3944]
[1733909704346,4.3764,221.55,221.49,14.63885341]
[1733909704841,2.2565,221.54,221.49,7.75448621]
[1733909705045,2.2565,221.54,221.47,6.8843672]
[1733909705046,6.8843672,221.52,221.46,1.3701]
[1733909705445,2.2571,221.49,221.46,5.4378958]
[1733909705639,4.3771,221.49,221.46,5.4378958]
[1733909706044,2.12,221.49,221.46,5.4378958]
[1733909706239,2.12,221.54,221.47,6.8843672]
[1733909706446,2.12,221.54,221.49,6.8843672]
[1733909706644,2.12,221.54,221.49,9.1413672]
[1733909707346,2.12,221.54,221.49,6.8843672]
[1733909707646,2.12,221.54,221.5,2.2569]
[1733909708743,2.12,221.54,221.53,2.2566]
[1733909709544,2.12,221.54,221.53,9.1409672]
[1733909709746,2.12,221.58,221.54,2.2565]
[1733909710150,0.20601,221.67,221.55,6.8843672]
[1733909710151,2.12,221.61,221.55,6.8843672]
[1733909710342,2.12,221.62,221.55,6.8843672]
[1733909710545,2.12,221.61,221.57,6.8843672]
[1733909710950,0.20601,221.67,221.59,6.8843672]
[1733909711145,2.12,221.66,221.61,6.8843672]
[1733909711347,2.12,221.66,221.62,2.2557]
[1733909712744,6.8843672,221.65,221.6,2.2559]
[1733909712949,6.8843672,221.65,221.57,6.8843672]
[1733909713151,2.12,221.66,221.54,10.75276298]
[1733909713347,4.3753,221.66,221.54,10.75276298]
[1733909714456,4.3753,221.66,221.59,2.256]
[1733909715448,4.3753,221.66,221.54,10.75276298]
[1733909715651,4.3753,221.66,221.6,2.2559]
[1733909715851,2.2554,221.65,221.54,10.75276298]
[1733909716252,2.2554,221.65,221.58,2.256]
[1733909716755,2.2555,221.64,221.58,2.2561]
[1733909718250,2.2555,221.64,221.6,5.34225398]
[1733909720450,2.12,221.66,221.54,10.75276298]
[1733909720658,10.75276298,221.62,221.52,4.1785]
[1733909720859,2.12,221.61,221.52,4.1785]
[1733909721058,2.12,221.61,221.55,5.32461642]
[1733909721260,2.2559,221.6,221.55,7.58101642]
[1733909721656,2.12,221.61,221.55,7.58101642]
[1733909722457,2.12,221.61,221.56,2.2563]
[1733909723465,10.75276298,221.65,221.55,5.32461642]
[1733909723671,1.3425,221.67,221.55,5.32461642]
[1733909723864,2.12,221.66,221.55,5.32461642]
[1733909724360,2.2555,221.65,221.59,2.2559]
[1733909725069,10.75276298,221.65,221.55,5.32461642]
[1733909725570,2.2557,221.62,221.55,5.32461642]
[1733909725770,2.12,221.61,221.55,5.32461642]
[1733909726567,2.12,221.61,221.57,2.2562]
[1733909732167,2.12,221.61,221.55,5.32461642]
[1733909732469,4.3759,221.61,221.55,7.58101642]
[1733909733172,6.88464397,221.6,221.55,7.58101642]
[1733909733568,6.88464397,221.6,221.56,2.2563]
[1733909734774,6.88464397,221.58,221.52,4.1785]
[1733909735370,6.88464397,221.58,221.53,5.29133812]
[1733909735570,6.88464397,221.58,221.53,7.54793812]
[1733909735571,9.14084397,221.58,221.53,7.54793812]
[1733909735868,6.88464397,221.58,221.53,5.29133812]
[1733909736272,2.2563,221.57,221.53,5.29133812]
[1733909738376,2.12,221.56,221.53,5.29133812]
[1733909742075,9.00464397,221.56,221.47,6.88464397]
[1733909742278,6.88464397,221.55,221.52,5.34117464]
[1733909742473,6.88464397,221.55,221.51,2.2568]
[1733909742777,6.88464397,221.55,221.47,6.88464397]
[1733909743575,6.88464397,221.53,221.45,4.1416]
[1733909743877,6.88464397,221.53,221.45,11.02624397]
[1733909744478,6.88464397,221.55,221.47,6.88464397]
[1733909744680,9.14104397,221.55,221.5,2.2569]
[1733909745279,6.88464397,221.55,221.49,2.257]
[1733909745577,6.88464397,221.55,221.47,6.88464397]
[1733909745879,6.88464397,221.55,221.5,5.30457845]
[1733909746476,6.88464397,221.55,221.51,2.2568]
[1733909748176,2.12,221.56,221.52,2.2567]
[1733909748878,9.00464397,221.56,221.52,2.2567]
[1733909750281,2.12,221.6,221.56,2.2563]
[1733909750580,6.88464397,221.59,221.56,2.2563]
[1733909751080,6.88464397,221.59,221.57,2.2562]
[1733909752775,1.3425,221.67,221.53,6.88464397]
[1733909752972,2.2556,221.63,221.58,2.2561]
[1733909753377,6.88464397,221.61,221.58,2.2561]
[1733909753579,2.12,221.6,221.58,2.2561]
[1733909754280,2.12,221.6,221.59,2.256]
[1733909754484,2.2555,221.64,221.57,6.88464397]
[1733909754485,2.12,221.63,221.57,6.88464397]
[1733909754681,0.21098,221.68,221.59,6.88464397]
[1733909754881,6.88464397,221.66,221.59,6.88464397]
[1733909755579,6.88464397,221.66,221.6,3.83983471]
[1733909755776,6.88464397,221.64,221.61,3.83983471]
[1733909755982,6.88464397,221.64,221.57,6.88464397]
[1733909756181,6.88464397,221.64,221.59,2.2559]
[1733909756482,6.88464397,221.64,221.6,3.83981596]
[1733909756681,6.88464397,221.62,221.44,6.2857787]
[1733909756884,6.88464397,221.55,221.51,3.84047812]
[1733909757081,6.88464397,221.55,221.52,3.84047812]
[1733909757282,6.88464397,221.55,221.53,3.84047812]
[1733909757479,6.88464397,221.55,221.54,3.84047812]
[1733909757683,6.88464397,221.55,221.47,8.27954397]
[1733909757982,6.88464397,221.55,221.51,6.09744956]
[1733909758182,6.88464397,221.55,221.52,3.84064956]
[1733909758386,2.12,221.56,221.53,3.84064956]
[1733909758576,2.12,221.56,221.54,3.84064956]
[1733909758779,2.6455,221.66,221.55,3.84032404]
[1733909758982,2.6455,221.66,221.56,3.84032404]
[1733909758983,6.88464397,221.57,221.56,3.84032404]
[1733909759177,9.00464397,221.57,221.56,3.84032404]
[1733909760985,9.00464397,221.57,221.47,8.27954397]
[1733909761184,6.88464397,221.54,221.51,3.8412905]
[1733909761388,6.88464397,221.54,221.52,3.8412905]
[1733909761689,6.88464397,221.54,221.53,3.8412905]
[1733909762791,2.12,221.57,221.5,5.30457845]
[1733909763089,6.88464397,221.56,221.52,2.2567]
[1733909763282,6.88464397,221.56,221.51,3.84153258]
[1733909763481,6.88464397,221.56,221.52,3.84153258]
[1733909763687,6.88464397,221.56,221.53,3.84153258]
[1733909763982,6.88464397,221.56,221.54,6.09803258]
[1733909764181,6.88464397,221.56,221.55,3.84233329]
[1733909765988,6.88464397,221.56,221.53,2.2566]
[1733909766191,6.88464397,221.56,221.54,3.84282427]
[1733909766488,6.88464397,221.56,221.53,2.2566]
[1733909766693,6.88464397,221.56,221.54,3.84275703]
[1733909766893,6.88464397,221.56,221.53,2.2566]
[1733909767093,6.88464397,221.56,221.54,3.8427564]
[1733909767292,6.88464397,221.56,221.55,3.84256235]
[1733909768291,6.88464397,221.56,221.52,500.0]
[1733909768492,6.88464397,221.56,221.53,3.84273664]
[1733909768696,6.88464397,221.56,221.54,3.84273664]
[1733909768886,6.88464397,221.56,221.52,500.0]
[1733909769092,6.88464397,221.56,221.53,3.84274198]
[1733909769393,6.88464397,221.56,221.54,3.84274198]
[1733909769597,9.14094397,221.56,221.52,500.0]
[1733909769800,9.14094397,221.56,221.53,3.84290214]
[1733909769801,6.88464397,221.54,221.53,3.84290214]
[1733909773794,6.88464397,221.54,221.53,3.84260153]
[1733909773999,6.88464397,221.54,221.52,500.0]
[1733909774902,2.2566,221.53,221.52,500.0]
[1733909775595,2.2566,221.53,221.52,428.85100907]
[1733909777292,2.2566,221.53,221.52,407.20787558]
[1733909778000,3.2566,221.53,221.52,407.20787558]
[1733909778200,3.2566,221.53,221.52,336.05888465]
[1733909779906,3.2566,221.53,221.52,314.41575116]
[1733909781205,10.14124397,221.53,221.52,264.90989372]
[1733909781502,12.26124397,221.53,221.52,264.90989372]
[1733909807828,12.26124397,221.53,221.52,193.76090279]
[1733909808030,12.26124397,221.53,221.52,190.81830279]
[1733909808333,12.26124397,221.53,221.52,185.86140279]
[1733909810929,12.26124397,221.53,221.52,114.71241186]
[1733909813832,12.26124397,221.53,221.52,43.56342093]
[1733909816535,2.2578,221.42,221.41,5.50401182]
[1733909816931,9.00464397,221.43,221.39,2.8512]
[1733909817435,2.12,221.47,221.42,6.88464397]
[1733909817639,2.12,221.47,221.44,6.88464397]
[1733909817838,2.2574,221.46,221.44,6.88464397]
[1733909818139,2.12,221.47,221.44,6.88464397]
[1733909818840,2.2571,221.49,221.44,6.88464397]
[1733909819040,2.12,221.48,221.44,6.88464397]
[1733909820032,2.12,221.47,221.44,6.88464397]
[1733909820233,2.2574,221.46,221.44,6.88464397]
[1733909820431,2.2574,221.46,221.45,3.84351197]
[1733909821241,2.12,221.47,221.45,3.84351197]
[1733909821437,48.1836,221.63,221.46,6.88464397]
[1733909821438,51.4514,221.63,221.46,6.88464397]
[1733909821743,6.88464397,221.56,221.49,6.88464397]
[1733909821941,2.2567,221.53,221.49,6.88464397]
[1733909822146,2.12,221.55,221.49,6.88464397]
[1733909822343,46.94,221.63,221.51,6.88464397]
[1733909822646,6.88464397,221.59,221.51,6.88464397]
[1733909822948,2.2566,221.54,221.51,6.88464397]
[1733909823245,2.12,221.55,221.51,6.88464397]
[1733909824447,2.2566,221.54,221.51,6.88464397]
[1733909824641,2.12,221.55,221.51,6.88464397]
[1733909824854,9.00464397,221.55,221.48,6.88464397]
[1733909825141,9.00464397,221.55,221.47,1.3519]
[1733909825342,6.88464397,221.53,221.47,1.3519]
[1733909825946,6.88464397,221.49,221.41,2.2578]
[1733909826138,2.12,221.48,221.41,6.88464397]
[1733909826937,6.88464397,221.45,221.39,5.38279491]
[1733909827843,6.88464397,221.45,221.35,50.64112626]
[1733909828044,2.12,221.48,221.38,12.41199355]
[1733909828342,2.2579,221.41,221.38,12.41199355]
[1733909828654,4.3779,221.41,221.39,3.84224913]
[1733909829848,9.14264397,221.4,221.39,3.84224913]
[1733909830544,2.2583,221.37,221.34,5.37346757]
[1733909830841,2.12,221.36,221.35,3.84038024]
[1733909832043,4.3784,221.36,221.35,3.84038024]
[1733909832245,4.3784,221.36,221.3,8.27984397]
[1733909832539,2.12,221.4,221.34,6.88464397]
[1733909832740,2.12,221.39,221.36,6.88464397]
[1733909833048,2.12,221.42,221.38,6.88464397]
[1733909833250,2.12,221.44,221.4,6.88464397]
[1733909833547,2.12,221.44,221.41,3.83554584]
[1733909833749,2.12,221.44,221.42,3.83554584]
[1733909833950,2.12,221.44,221.4,6.88464397]
[1733909834151,2.12,221.44,221.41,3.83471766]
[1733909834347,2.12,221.44,221.42,3.83471766]
[1733909834650,2.12,221.44,221.4,6.88464397]
[1733909834850,2.12,221.44,221.41,3.83465325]
[1733909835151,2.12,221.44,221.4,6.88464397]
[1733909835341,4.3776,221.44,221.4,6.88464397]
[1733909835544,6.88464397,221.46,221.4,6.88464397]
[1733909835741,2.12,221.45,221.41,3.83479721]
[1733909835945,2.12,221.45,221.4,6.88464397]
[1733909835946,2.12,221.45,221.42,3.83479721]
[1733909836251,2.12,221.45,221.43,3.83479721]
[1733909836451,2.12,221.45,221.4,6.88464397]
[1733909836650,2.12,221.45,221.41,3.83496897]
[1733909836951,2.12,221.45,221.42,3.83496897]
[1733909837150,2.12,221.45,221.43,3.83496897]
[1733909837446,2.12,221.45,221.4,6.88464397]
[1733909837747,2.12,221.45,221.41,6.09302195]
[1733909837952,2.12,221.45,221.42,3.83512195]
[1733909838154,2.12,221.45,221.43,3.83512195]
[1733909838454,2.12,221.45,221.41,2.2579]
[1733909838650,2.12,221.45,221.42,3.83546008]
[1733909838854,2.12,221.45,221.43,3.83546008]
[1733909839150,2.12,221.45,221.41,2.2579]
[1733909839351,2.12,221.45,221.42,3.83569392]
[1733909839551,2.12,221.45,221.43,3.83569392]
[1733909839751,2.12,221.45,221.41,2.2579]
[1733909840154,2.12,221.45,221.42,3.83570734]
[1733909840355,2.12,221.45,221.43,3.83570734]
[1733909840546,2.12,221.45,221.41,2.2579]
[1733909840751,4.3775,221.45,221.42,3.83596889]
[1733909840953,4.3775,221.45,221.41,2.2579]
[1733909841252,4.3775,221.45,221.42,3.83627224]
[1733909841447,4.3775,221.45,221.43,3.83627224]
[1733909841645,4.3775,221.45,221.41,2.2579]
[1733909841848,2.12,221.45,221.42,3.83656349]
[1733909842045,2.12,221.45,221.43,3.83656349]
[1733909842248,6.88464397,221.5,221.44,3.83656349]
[1733909842456,2.12,221.49,221.45,3.83656349]
[1733909842651,2.12,221.49,221.42,6.88464397]
[1733909842846,2.12,221.49,221.43,3.83650159]
[1733909843042,2.12,221.49,221.42,6.88464397]
[1733909843043,2.12,221.49,221.44,3.83650159]
[1733909843244,2.12,221.49,221.34,2.12]
[1733909843448,2.12,221.49,221.45,3.83652416]
[1733909843855,2.12,221.49,221.44,6.88464397]
[1733909844052,2.12,221.49,221.45,3.83643116]
[1733909844352,2.12,221.49,221.44,6.88464397]
[1733909844658,2.12,221.49,221.46,2.2574]
[1733909844955,9.00464397,221.49,221.34,2.12]
[1733909845151,6.88464397,221.47,221.41,6.88464397]
[1733909845454,0.17285,221.57,221.45,6.88464397]
[1733909845755,0.17285,221.57,221.4,2.12]
[1733909845756,6.88464397,221.55,221.48,6.88464397]
[1733909845959,6.88464397,221.55,221.51,2.2568]
[1733909846452,6.88464397,221.55,221.52,3.83456094]
[1733909846453,9.00464397,221.55,221.52,3.83456094]
[1733909846646,9.00464397,221.55,221.51,2.2568]
[1733909846847,9.00464397,221.55,221.52,3.83451973]
[1733909847044,2.12,221.55,221.52,2.2567]
[1733909847247,2.12,221.55,221.48,6.88464397]
[1733909847248,9.00464397,221.55,221.48,6.88464397]
[1733909847553,9.00464397,221.55,221.49,3.83302729]
[1733909847748,2.2566,221.54,221.5,3.83302729]
[1733909848050,2.2566,221.54,221.49,2.257]
[1733909848659,2.2566,221.54,221.5,3.83240629]
[1733909848953,2.2566,221.54,221.49,2.257]
[1733909849753,2.2568,221.52,221.41,0.675]
[1733909849955,6.88464397,221.53,221.43,6.88464397]
[1733909850359,6.88464397,221.53,221.44,3.83111857]
[1733909850555,2.2567,221.53,221.47,6.88464397]
[1733909850755,9.00464397,221.55,221.48,3.83111857]
[1733909850955,6.88464397,221.53,221.45,6.88464397]
[1733909851159,2.2569,221.51,221.46,3.8312063]
[1733909851454,2.12,221.5,221.47,3.8312063]
[1733909851655,2.12,221.5,221.33,4.5172]
[1733909851656,6.88464397,221.49,221.33,4.5172]
[1733909851859,6.88464397,221.49,221.41,6.88464397]
[1733909852056,6.88464397,221.49,221.42,3.83129476]
[1733909852255,6.88464397,221.49,221.43,3.83129476]
[1733909852456,6.88464397,221.49,221.44,3.83129476]
[1733909852759,2.2573,221.47,221.43,2.2576]
[1733909856661,2.12,221.5,221.43,6.88464397]
[1733909856864,2.12,221.5,221.45,6.88464397]